bitfinex/quotes_BTCUSD_20250428
["timestamp","ask_amount","ask_price","bid_price","bid_amount"]
[1745863573487,0.2377628,94110.0,94109.0,0.00079519]
[1745863573922,0.26751431,94110.0,94109.0,0.00079519]
[1745863574144,0.2377628,94110.0,94109.0,0.00079519]
[1745863577665,0.21054485,94110.0,94109.0,0.00079519]
[1745863582363,0.24029849,94110.0,94109.0,0.00079519]
[1745863595558,1.48338975,94110.0,94109.0,0.00079519]
[1745863595754,0.55253759,94101.0,94100.0,5.241e-05]
[1745863595927,2.38072123,94101.0,94100.0,5.241e-05]
[1745863596125,0.69853703,94101.0,94100.0,5.241e-05]
[1745863596655,2.54476803,94101.0,94100.0,5.241e-05]
[1745863596802,2.46401244,94101.0,94100.0,5.241e-05]
[1745863597022,0.68599944,94101.0,94100.0,5.241e-05]
[1745863597303,0.5791093,94101.0,94100.0,5.241e-05]
[1745863599054,0.5821093,94101.0,94100.0,5.241e-05]
[1745863599270,0.5821093,94101.0,94100.0,0.04505241]
[1745863602672,0.5821093,94101.0,94100.0,5.241e-05]
[1745863602874,0.64032023,94101.0,94100.0,5.241e-05]
[1745863605724,0.5821093,94101.0,94100.0,5.241e-05]
[1745863643867,0.5821093,94101.0,94100.0,0.15304255]
[1745863644121,0.2421093,94101.0,94100.0,0.19904255]
[1745863645012,0.2391093,94101.0,94100.0,0.09215241]
[1745863645215,0.2411093,94101.0,94100.0,0.09215241]
[1745863645616,0.2391093,94101.0,94100.0,0.09215241]
[1745863647482,0.2391093,94101.0,94100.0,0.09315241]
[1745863647896,0.27874196,94101.0,94100.0,0.09315241]
[1745863650999,0.5811093,94101.0,94100.0,0.09215241]
[1745863656153,0.79364689,94101.0,94100.0,0.09215241]
[1745863656356,0.89957816,94101.0,94100.0,0.04605241]
[1745863659112,0.5811093,94101.0,94100.0,0.04605241]
[1745863664153,0.79364689,94101.0,94100.0,0.04605241]
[1745863664352,0.5811093,94101.0,94100.0,0.04605241]
[1745863664567,0.79364689,94101.0,94100.0,0.04605241]
[1745863665686,0.76548499,94101.0,94100.0,0.04605241]
[1745863665904,0.65983754,94101.0,94100.0,5.241e-05]
[1745863666115,0.5529474,94101.0,94100.0,5.241e-05]
[1745863666343,0.3529474,94101.0,94100.0,5.241e-05]
[1745863666986,0.5529474,94101.0,94100.0,5.241e-05]
[1745863672058,0.76548499,94101.0,94100.0,5.241e-05]
[1745863672934,0.78541033,94101.0,94100.0,5.241e-05]
[1745863673255,0.89230047,94101.0,94100.0,5.241e-05]
[1745863674075,0.67976288,94101.0,94100.0,5.241e-05]
[1745863674285,0.57287274,94101.0,94100.0,5.241e-05]
[1745863674719,0.78541033,94101.0,94100.0,5.241e-05]
[1745863677925,0.76548499,94101.0,94100.0,5.241e-05]
[1745863680038,0.78541426,94101.0,94100.0,5.241e-05]
[1745863681326,0.5529474,94101.0,94100.0,5.241e-05]
[1745863681703,0.76548499,94101.0,94100.0,5.241e-05]
[1745863682140,0.57287714,94101.0,94100.0,5.241e-05]
[1745863682938,0.5529474,94101.0,94100.0,5.241e-05]
[1745863683494,0.76548499,94101.0,94100.0,5.241e-05]
[1745863684939,0.78541612,94101.0,94100.0,5.241e-05]
[1745863685134,0.89230626,94101.0,94100.0,5.241e-05]
[1745863685554,0.78541612,94101.0,94100.0,5.241e-05]
[1745863687434,0.57287853,94101.0,94100.0,5.241e-05]
[1745863688630,0.78541612,94101.0,94100.0,5.241e-05]
[1745863688805,0.57287853,94101.0,94100.0,5.241e-05]
[1745863693189,0.57287853,94101.0,94100.0,0.09245241]
[1745863693771,0.57287853,94101.0,94100.0,5.241e-05]
[1745863693967,0.78541612,94101.0,94100.0,5.241e-05]
[1745863694167,0.35062699,94100.0,94092.0,0.0454]
[1745863694378,0.00159174,94099.0,94092.0,0.0454]
[1745863694576,0.34,94100.0,94092.0,0.0454]
[1745863694577,0.00159174,94098.0,94092.0,0.0454]
[1745863694841,0.00159174,94097.0,94092.0,0.0454]
[1745863695022,0.00159174,94096.0,94092.0,0.0454]
[1745863695185,0.00159174,94095.0,94092.0,0.0454]
[1745863695395,0.00159174,94094.0,94092.0,0.04548228]
[1745863695580,0.00159174,94093.0,94092.0,0.04548228]
[1745863695987,0.56152287,94093.0,94092.0,0.04548228]
[1745863696217,0.5699466,94093.0,94092.0,0.04548228]
[1745863697283,0.58082015,94093.0,94092.0,0.04548228]
[1745863706608,0.24082015,94093.0,94092.0,0.19847242]
[1745863706864,0.2299466,94093.0,94092.0,0.19847242]
[1745863707049,0.0299466,94093.0,94092.0,0.19847242]
[1745863708668,0.04072536,94093.0,94092.0,0.19847242]
[1745863710232,0.0299466,94093.0,94092.0,0.19847242]
[1745863710460,0.2299466,94093.0,94092.0,0.19847242]
[1745863712274,0.22921972,94093.0,94092.0,0.19847242]
[1745863713549,0.22835486,94093.0,94092.0,0.19847242]
[1745863713896,0.02835486,94093.0,94092.0,0.19847242]
[1745863715463,0.00842373,94093.0,94092.0,0.19847242]
[1745863715674,0.2,94096.0,94092.0,0.19847242]
[1745863715849,0.00842554,94095.0,94094.0,0.0489]
[1745863716055,0.00842554,94095.0,94094.0,0.15579014]
[1745863716257,0.02833794,94095.0,94094.0,0.15579014]
[1745863716943,0.00842554,94095.0,94094.0,0.15579014]
[1745863717564,0.00942554,94095.0,94094.0,0.15579014]
[1745863722942,0.20942554,94095.0,94094.0,0.15579014]
[1745863723155,0.23928515,94095.0,94094.0,0.15579014]
[1745863723488,0.25918998,94095.0,94094.0,0.15579014]
[1745863742945,0.25918998,94095.0,94094.0,0.0489]
[1745863743178,0.25918998,94095.0,94092.0,8.228e-05]
[1745863743179,0.55255566,94093.0,94092.0,8.228e-05]
[1745863743398,0.37828594,94093.0,94092.0,8.228e-05]
[1745863743615,0.39819077,94093.0,94092.0,8.228e-05]
[1745863744279,0.61074643,94093.0,94092.0,8.228e-05]
[1745863744503,1.77534057,94093.0,94092.0,8.228e-05]
[1745863744743,0.55255792,94092.0,94091.0,0.004]
[1745863744966,1.33928253,94092.0,94091.0,0.00408229]
[1745863745227,1.34752202,94092.0,94091.0,0.00408229]
[1745863745432,1.36742685,94092.0,94091.0,0.00408229]
[1745863745654,1.47431699,94092.0,94091.0,0.00408229]
[1745863746115,1.47431699,94092.0,94091.0,1e-08]
[1745863746116,1.78520713,94092.0,94091.0,1e-08]
[1745863746338,1.02834213,94092.0,94091.0,1e-08]
[1745863746775,0.55256921,94087.0,94071.0,0.0008478]
[1745863746991,3.82607021,94087.0,94086.0,0.10788227]
[1745863747211,3.97094909,94087.0,94086.0,0.10788227]
[1745863747430,2.81561792,94087.0,94086.0,0.10788227]
[1745863747640,2.06279892,94087.0,94086.0,0.10788227]
[1745863747856,2.26279892,94087.0,94086.0,0.10788227]
[1745863748073,0.91735292,94087.0,94086.0,0.10788227]
[1745863748223,2.71971192,94087.0,94086.0,0.10788227]
[1745863748430,2.72471192,94087.0,94086.0,0.10788227]
[1745863749306,2.72471192,94087.0,94086.0,0.08501227]
[1745863749722,2.72471192,94087.0,94086.0,0.07267227]
[1745863752205,2.72471192,94087.0,94086.0,0.01947307]
[1745863752575,0.55257373,94085.0,94071.0,0.0008478]
[1745863752793,2.01030248,94085.0,94071.0,0.0008478]
[1745863752993,2.07230049,94085.0,94071.0,0.0008478]
[1745863753397,2.05570049,94085.0,94071.0,0.0008478]
[1745863753862,0.34,94084.0,94071.0,0.0008478]
[1745863754069,1.59997961,94084.0,94071.0,0.0008478]
[1745863754275,1.84734123,94084.0,94071.0,0.0008478]
[1745863754498,1.86724606,94084.0,94071.0,0.0008478]
[1745863755154,1.87224606,94084.0,94071.0,0.0008478]
[1745863755800,1.86661267,94084.0,94071.0,0.0008478]
[1745863756024,2.06661267,94084.0,94071.0,0.0008478]
[1745863757293,2.06661267,94084.0,94055.0,0.000848]
[1745863757294,0.01063105,94064.0,94055.0,0.000848]
[1745863757507,0.21263893,94057.0,94055.0,0.000848]
[1745863757655,1.63801114,94056.0,94055.0,0.000848]
[1745863758015,1.61028473,94056.0,94055.0,0.000848]
[1745863758168,1.822924,94056.0,94055.0,0.000848]
[1745863758374,1.786546,94056.0,94055.0,0.000848]
[1745863759015,1.96156545,94056.0,94055.0,0.000848]
[1745863759215,0.94818731,94056.0,94055.0,0.000848]
[1745863760619,1.82804231,94056.0,94055.0,0.000848]
[1745863760833,1.69940431,94056.0,94055.0,0.000848]
[1745863761527,1.37060731,94056.0,94055.0,0.000848]
[1745863761759,1.34163145,94056.0,94055.0,0.000848]
[1745863764604,0.55264153,94055.0,94053.0,0.000848]
[1745863764801,1.68104253,94055.0,94053.0,0.000848]
[1745863765029,1.70874292,94055.0,94053.0,0.000848]
[1745863765629,1.65822792,94055.0,94053.0,0.000848]
[1745863765833,1.85822792,94055.0,94053.0,0.000848]
[1745863766039,1.96511806,94055.0,94053.0,0.000848]
[1745863766532,1.64369306,94055.0,94053.0,0.000848]
[1745863766732,1.44713592,94055.0,94053.0,0.000848]
[1745863767351,1.4768554,94055.0,94053.0,0.000848]
[1745863767555,1.4778554,94055.0,94053.0,0.000848]
[1745863768272,1.3593864,94055.0,94053.0,0.000848]
[1745863773916,1.3583864,94055.0,94053.0,0.000848]
[1745863774119,1.46527654,94055.0,94053.0,0.000848]
[1745863774330,1.46627654,94055.0,94053.0,0.000848]
[1745863774695,1.46527654,94055.0,94053.0,0.000848]
[1745863775070,1.46827654,94055.0,94053.0,0.000848]
[1745863778180,1.47573532,94055.0,94053.0,0.000848]
[1745863779408,0.92441032,94055.0,94053.0,0.000848]
[1745863779611,4.10312932,94055.0,94053.0,0.000848]
[1745863779969,3.97889809,94054.0,94053.0,0.000848]
[1745863780270,3.78014478,94054.0,94053.0,0.000848]
[1745863780496,3.50908078,94054.0,94053.0,0.000848]
[1745863781076,3.51208078,94054.0,94053.0,0.000848]
[1745863781891,3.81997092,94054.0,94053.0,0.000848]
[1745863783504,0.5526551,94049.0,94048.0,0.000848]
[1745863783742,3.42402986,94049.0,94048.0,0.000848]
[1745863784136,3.43159095,94049.0,94048.0,0.000848]
[1745863784334,2.18978764,94049.0,94048.0,0.000848]
[1745863784559,0.55268902,94034.0,94033.0,0.02473824]
[1745863784734,0.71318602,94034.0,94033.0,0.02473824]
[1745863784936,0.77042363,94034.0,94033.0,0.02473824]
[1745863785611,0.77788655,94034.0,94033.0,0.02473824]
[1745863786267,0.97788655,94034.0,94033.0,0.02473824]
[1745863786919,0.97788655,94034.0,94033.0,0.02573824]
[1745863787554,0.97788655,94034.0,94033.0,0.07493824]
[1745863788618,0.83769869,94034.0,94033.0,0.07493824]
[1745863789025,0.84822152,94034.0,94033.0,0.07493824]
[1745863789457,0.82791238,94034.0,94033.0,0.07493824]
[1745863795978,0.82044946,94034.0,94033.0,0.07493824]
[1745863799480,0.82791873,94034.0,94033.0,0.07493824]
[1745863807084,0.61522971,94034.0,94033.0,0.07493824]
[1745863807260,0.82791873,94034.0,94033.0,0.07493824]
[1745863807671,0.84311699,94034.0,94033.0,0.07493824]
[1745863808395,0.82791873,94034.0,94033.0,0.07493824]
[1745863809473,0.61522971,94034.0,94033.0,0.07493824]
[1745863809979,0.82791873,94034.0,94033.0,0.07493824]
[1745863810202,0.61522971,94034.0,94033.0,0.07493824]
[1745863810647,0.82044946,94034.0,94033.0,0.07493824]
[1745863811586,0.60776044,94034.0,94033.0,0.07493824]
[1745863811803,0.82044946,94034.0,94033.0,0.07493824]
[1745863813156,0.93482339,94034.0,94033.0,0.02573824]
[1745863813603,0.21269355,94032.0,94015.0,0.0942]
[1745863813824,0.55272522,94018.0,94015.0,0.0485]
[1745863814033,1.58882353,94018.0,94014.0,0.000848]
[1745863814251,1.40424271,94018.0,94014.0,0.000848]
[1745863814656,0.6172295,94018.0,94014.0,0.000848]
[1745863815104,1.5583135,94018.0,94017.0,0.00130431]
[1745863815305,0.55272748,94017.0,94016.0,0.00020983]
[1745863815515,2.4785201,94017.0,94016.0,0.00034657]
[1745863815721,2.50573467,94017.0,94016.0,0.00034657]
[1745863815933,2.70573467,94017.0,94016.0,0.00034657]
[1745863816135,2.10633567,94017.0,94016.0,0.00034657]
[1745863816407,2.03982067,94017.0,94016.0,0.00034657]
[1745863819140,0.55276143,94002.0,94001.0,0.004]
[1745863819353,0.55276369,94001.0,94000.0,0.94617968]
[1745863819570,1.89907717,94001.0,94000.0,0.94624277]
[1745863819772,1.61373999,94001.0,94000.0,0.94624277]
[1745863820205,1.63364482,94001.0,94000.0,0.94624277]
[1745863820415,1.57375782,94001.0,94000.0,0.94624277]
[1745863820617,1.73064796,94001.0,94000.0,0.8983727]
[1745863821032,1.93064796,94001.0,94000.0,0.8983727]
[1745863821251,2.0385381,94001.0,94000.0,0.8983727]
[1745863821732,1.60255582,94001.0,94000.0,0.8983727]
[1745863822142,1.22928482,94001.0,94000.0,0.8983727]
[1745863825132,1.22928482,94001.0,94000.0,0.8477527]
[1745863826914,1.23672491,94001.0,94000.0,0.8477527]
[1745863827342,1.20700543,94001.0,94000.0,0.8477527]
[1745863827532,1.31389557,94001.0,94000.0,0.8477527]
[1745863827793,1.51868571,94001.0,94000.0,0.7439027]
[1745863828244,1.47078571,94001.0,94000.0,0.7439027]
[1745863828462,1.42078571,94001.0,94000.0,0.7439027]
[1745863828876,1.42078571,94001.0,93979.0,0.02188793]
[1745863828877,0.55280444,93983.0,93979.0,0.02188793]
[1745863829100,0.55280444,93983.0,93962.0,0.0008484]
[1745863829101,0.01064226,93965.0,93962.0,0.0008484]
[1745863829325,0.34,93963.0,93962.0,0.0008484]
[1745863829558,0.35990483,93963.0,93962.0,0.00130471]
[1745863829781,0.37766593,93963.0,93962.0,0.05050471]
[1745863830457,0.59051566,93963.0,93962.0,0.05050471]
[1745863830684,0.37766593,93963.0,93962.0,0.05050471]
[1745863830903,0.59051566,93963.0,93962.0,0.05050471]
[1745863831571,0.38510602,93963.0,93962.0,0.05050471]
[1745863831785,0.38981036,93963.0,93962.0,0.05050471]
[1745863832011,0.80266009,93963.0,93962.0,0.05050471]
[1745863832236,0.835458,93963.0,93962.0,0.05050471]
[1745863833185,0.80266009,93963.0,93962.0,0.00130471]
[1745863834055,0.80266009,93963.0,93962.0,0.00330471]
[1745863834550,0.58981036,93963.0,93962.0,0.00330471]
[1745863835412,0.58981036,93963.0,93962.0,0.09620471]
[1745863835413,0.24981036,93963.0,93962.0,0.09620471]
[1745863835632,0.24981036,93963.0,93962.0,0.20309485]
[1745863836063,0.04981036,93963.0,93962.0,0.20309485]
[1745863836283,0.04237027,93963.0,93962.0,0.20309485]
[1745863836894,0.04237027,93963.0,93962.0,0.09620471]
[1745863837092,0.38237027,93963.0,93962.0,0.09620471]
[1745863837298,0.59522,93963.0,93962.0,0.09420471]
[1745863837503,0.38237027,93963.0,93962.0,0.09420471]
[1745863837706,0.38237027,93963.0,93962.0,0.09620471]
[1745863838315,0.58237027,93963.0,93962.0,0.09620471]
[1745863839269,0.58237027,93963.0,93962.0,0.00330471]
[1745863839639,0.58237027,93963.0,93962.0,0.05120471]
[1745863840136,0.38237027,93963.0,93962.0,0.05120471]
[1745863840783,0.38980807,93963.0,93962.0,0.05120471]
[1745863841007,0.58980807,93963.0,93962.0,0.05120471]
[1745863842578,0.82634272,93963.0,93962.0,0.00330471]
[1745863842803,0.34,93954.0,93953.0,0.0456]
[1745863842974,0.55287012,93954.0,93953.0,0.04566308]
[1745863843176,0.58429464,93954.0,93953.0,0.04566308]
[1745863843401,0.59173244,93954.0,93953.0,0.04566308]
[1745863844051,0.59173244,93954.0,93953.0,0.04666308]
[1745863844241,0.40860703,93954.0,93953.0,0.04666308]
[1745863844503,0.40860703,93954.0,93953.0,0.00106308]
[1745863844504,0.72836729,93954.0,93953.0,0.00106308]
[1745863844716,1.77210029,93954.0,93953.0,0.00106308]
[1745863844921,1.82368229,93954.0,93953.0,0.00106308]
[1745863845315,1.64742815,93954.0,93953.0,0.00106308]
[1745863845943,1.64742815,93954.0,93953.0,6.308e-05]
[1745863846147,1.69544215,93954.0,93953.0,6.308e-05]
[1745863846579,1.69344215,93954.0,93953.0,6.308e-05]
[1745863846757,1.48305115,93954.0,93953.0,6.308e-05]
[1745863847296,1.36084115,93954.0,93953.0,6.308e-05]
[1745863847501,1.36384115,93954.0,93953.0,6.308e-05]
[1745863847721,1.14542915,93954.0,93953.0,6.308e-05]
[1745863848008,0.27160703,93954.0,93953.0,0.04596308]
[1745863848949,0.27160703,93954.0,93953.0,0.09556308]
[1745863849754,0.26860703,93954.0,93953.0,0.09556308]
[1745863849962,0.40860703,93954.0,93953.0,0.09656308]
[1745863850936,0.40860703,93954.0,93953.0,0.00106308]
[1745863852105,0.60860703,93954.0,93953.0,0.00106308]
[1745863856034,0.40860703,93954.0,93953.0,0.00106308]
[1745863858494,0.40860703,93954.0,93953.0,0.19925322]
[1745863859430,0.40860703,93954.0,93953.0,0.19825322]
[1745863860159,0.40860703,93954.0,93953.0,0.20025322]
[1745863860914,0.39708734,93954.0,93953.0,0.20025322]
[1745863861122,0.4084434,93954.0,93953.0,0.20025322]
[1745863861544,0.4084434,93954.0,93953.0,0.21479407]
[1745863862390,0.37131856,93954.0,93953.0,0.21479407]
[1745863862587,0.40119863,93954.0,93953.0,0.21279407]
[1745863862792,0.40119863,93954.0,93953.0,0.21579407]
[1745863863228,0.40863643,93954.0,93953.0,0.21579407]
[1745863865287,0.37131856,93954.0,93953.0,0.21579407]
[1745863867011,0.37875636,93954.0,93953.0,0.21579407]
[1745863869398,0.37131856,93954.0,93953.0,0.21579407]
[1745863871849,0.4091942,93954.0,93953.0,0.21579407]
[1745863872089,0.37131856,93954.0,93953.0,0.21579407]
[1745863872960,0.37875636,93954.0,93953.0,0.21579407]
[1745863873981,0.37131856,93954.0,93953.0,0.21579407]
[1745863874610,0.37875636,93954.0,93953.0,0.21579407]
[1745863877127,0.35885153,93954.0,93953.0,0.21579407]
[1745863877884,0.37878077,93954.0,93953.0,0.21579407]
[1745863879996,0.35885153,93954.0,93953.0,0.21579407]
[1745863890441,0.57172165,93954.0,93953.0,0.10995322]
[1745863890649,0.60164713,93954.0,93953.0,0.10995322]
[1745863890869,0.38877701,93954.0,93953.0,0.00306308]
[1745863891102,0.58877701,93954.0,93953.0,0.00306308]
[1745863891700,0.80164713,93954.0,93953.0,0.00306308]
[1745863891911,0.60873793,93954.0,93953.0,0.00306308]
[1745863892932,0.58877701,93954.0,93953.0,0.00306308]
[1745863894006,0.38877701,93954.0,93953.0,0.00306308]
[1745863895038,0.60872506,93954.0,93953.0,0.00306308]
[1745863895968,0.82159518,93954.0,93953.0,0.00306308]
[1745863896617,0.60872506,93954.0,93953.0,0.00306308]
[1745863897561,0.82159518,93954.0,93953.0,0.00306308]
[1745863899049,0.82159518,93954.0,93953.0,6.308e-05]
[1745863900976,0.60872506,93954.0,93953.0,6.308e-05]
[1745863902043,0.40872506,93954.0,93953.0,6.308e-05]
[1745863903091,0.60872506,93954.0,93953.0,6.308e-05]
[1745863908247,1.95552532,93954.0,93953.0,6.308e-05]
[1745863908519,1.95552532,93954.0,93941.0,0.004]
[1745863908520,0.55289731,93942.0,93941.0,0.004]
[1745863908741,0.91435579,93942.0,93941.0,0.00406309]
[1745863908961,0.92561131,93942.0,93941.0,0.00406309]
[1745863909234,0.95299716,93942.0,93941.0,0.00406309]
[1745863909682,0.67006416,93942.0,93941.0,0.00406309]
[1745863909891,1.77658216,93942.0,93941.0,0.00406309]
[1745863910186,1.75663411,93942.0,93941.0,0.00406309]
[1745863910366,1.76163411,93942.0,93941.0,0.00506309]
[1745863912048,1.8377211,93942.0,93941.0,0.00506309]
[1745863912677,1.84560263,93942.0,93941.0,0.00506309]
[1745863913333,1.82570122,93942.0,93941.0,0.00506309]
[1745863913868,1.84559494,93942.0,93941.0,0.00506309]
[1745863917408,0.55292678,93929.0,93928.0,0.002]
[1745863917609,2.19528706,93929.0,93928.0,0.00204562]
[1745863917809,2.37479884,93929.0,93928.0,0.00204562]
[1745863918092,2.57479884,93929.0,93928.0,0.00204562]
[1745863918394,2.59469256,93929.0,93928.0,0.00204562]
[1745863919183,2.49801225,93929.0,93928.0,0.00204562]
[1745863919387,1.50728125,93929.0,93928.0,0.00204562]
[1745863919596,1.50528125,93929.0,93928.0,0.00204562]
[1745863920000,1.50928125,93929.0,93928.0,0.00204562]
[1745863920208,1.48938753,93929.0,93928.0,0.00204562]
[1745863920555,1.06371953,93929.0,93928.0,0.00204562]
[1745863921006,1.17060967,93929.0,93928.0,0.00204562]
[1745863921262,1.17062796,93929.0,93928.0,0.00204562]
[1745863921470,0.90563404,93929.0,93928.0,0.00204562]
[1745863921700,0.59251304,93929.0,93928.0,0.00204562]
[1745863921948,0.56258756,93929.0,93928.0,0.00204562]
[1745863922162,0.58246642,93929.0,93928.0,0.00204562]
[1745863922404,0.23846642,93929.0,93928.0,0.00204562]
[1745863923038,0.24046642,93929.0,93928.0,0.00204562]
[1745863923469,0.62252505,93929.0,93928.0,0.00204562]
[1745863923680,0.58046642,93929.0,93928.0,0.00204562]
[1745863925217,0.7933932,93929.0,93928.0,0.00204562]
[1745863926281,0.58046642,93929.0,93928.0,0.00204562]
[1745863927449,0.7933932,93929.0,93928.0,0.00204562]
[1745863927781,0.58046642,93929.0,93928.0,0.00204562]
[1745863927974,0.7933932,93929.0,93928.0,0.00204562]
[1745863928223,0.58046642,93929.0,93928.0,0.00204562]
[1745863929066,0.7933932,93929.0,93928.0,0.00204562]
[1745863930101,1.3788642,93929.0,93928.0,0.00204562]
[1745863930249,1.4086807,93929.0,93928.0,0.00204562]
[1745863930678,0.55294265,93922.0,93915.0,0.0004244]
[1745863930859,0.59373555,93922.0,93921.0,0.00098528]
[1745863931087,0.60119164,93922.0,93921.0,0.00098528]
[1745863931551,0.6210705,93922.0,93921.0,0.00098528]
[1745863931998,0.8210705,93922.0,93921.0,0.00098528]
[1745863932199,0.8220705,93922.0,93921.0,0.00098528]
[1745863937540,0.60912785,93922.0,93921.0,0.00098528]
[1745863945263,0.8220705,93922.0,93921.0,0.00098528]
[1745863948760,0.90288835,93922.0,93921.0,0.00098528]
[1745863948973,0.60912785,93922.0,93921.0,0.00098528]
[1745863949174,0.60912785,93922.0,93921.0,0.09748528]
[1745863949848,0.40912785,93922.0,93921.0,0.09748528]
[1745863950262,0.40912785,93922.0,93921.0,0.20437542]
[1745863952551,0.40852413,93922.0,93921.0,0.20437542]
[1745863957063,0.40752413,93922.0,93921.0,0.20437542]
[1745863957274,0.40852413,93922.0,93921.0,0.20437542]
[1745863957702,0.38864527,93922.0,93921.0,0.20437542]
[1745863957913,0.38764527,93922.0,93921.0,0.20437542]
[1745863958126,0.38764527,93922.0,93921.0,0.20737542]
[1745863960377,0.38759021,93922.0,93921.0,0.20737542]
[1745863973571,0.38759021,93922.0,93921.0,0.11087542]
[1745863974042,0.58759021,93922.0,93921.0,0.11087542]
[1745863978082,0.38759021,93922.0,93921.0,0.11087542]
[1745863979048,0.38759021,93922.0,93921.0,0.00398528]
[1745863980060,0.58759021,93922.0,93921.0,0.00398528]
[1745863981331,0.58628,93922.0,93921.0,0.00398528]
[1745863983001,0.38628,93922.0,93921.0,0.00398528]
[1745863983598,0.38628,93922.0,93921.0,0.11087542]
[1745863983800,0.38628,93922.0,93921.0,0.15687542]
[1745863984442,0.40624259,93922.0,93921.0,0.15687542]
[1745863985660,0.40624259,93922.0,93921.0,0.20457542]
[1745863990140,0.39526619,93922.0,93921.0,0.20457542]
[1745863990433,0.40616467,93922.0,93921.0,0.20457542]
[1745864003452,0.38620208,93922.0,93921.0,0.20457542]
[1745864005926,0.40616493,93922.0,93921.0,0.20457542]
[1745864007237,0.40616493,93922.0,93921.0,0.15857542]
[1745864007675,0.40616493,93922.0,93921.0,0.11087542]
[1745864017474,0.40616493,93922.0,93921.0,0.11407942]
[1745864018273,0.40616493,93922.0,93921.0,0.11009414]
[1745864018457,0.40616493,93922.0,93921.0,0.0848122]
[1745864026302,0.40616493,93922.0,93921.0,0.0848122]
[1745864027335,0.40616493,93922.0,93921.0,0.14825305]
[1745864027507,0.37634843,93922.0,93921.0,0.19565305]
[1745864028430,0.36544995,93922.0,93921.0,0.19565305]
[1745864028801,0.37644104,93922.0,93921.0,0.19565305]
[1745864034644,0.37644104,93922.0,93921.0,0.1811122]
[1745864035044,0.36544995,93922.0,93921.0,0.1811122]
[1745864035451,0.37647369,93922.0,93921.0,0.1811122]
[1745864037352,0.37647369,93922.0,93921.0,0.1813381]
[1745864040702,0.37647369,93922.0,93921.0,0.1324381]
[1745864041678,0.40639892,93922.0,93921.0,0.1324381]
[1745864047641,0.40639892,93922.0,93921.0,0.0850381]
[1745864049720,0.403228,93922.0,93921.0,0.0850381]
[1745864053717,0.403228,93922.0,93921.0,0.1785381]
[1745864055275,0.37330277,93922.0,93921.0,0.1785381]
[1745864055402,0.40324405,93922.0,93921.0,0.1785381]
[1745864062703,0.40324405,93922.0,93921.0,0.39148302]
[1745864062866,0.36227903,93922.0,93921.0,0.39148302]
[1745864063070,0.37332684,93922.0,93921.0,0.1785381]
[1745864063273,0.40327685,93922.0,93921.0,0.1785381]
[1745864064023,0.37332684,93922.0,93921.0,0.1785381]
[1745864064221,0.37332684,93922.0,93921.0,0.39148302]
[1745864064649,0.37332684,93922.0,93921.0,0.1785381]
[1745864064860,0.37332684,93922.0,93921.0,0.39148302]
[1745864066603,0.37332684,93922.0,93921.0,0.1785381]
[1745864067480,0.40327814,93922.0,93921.0,0.1785381]
[1745864067689,0.40327814,93922.0,93921.0,0.39148302]
[1745864067901,0.37332684,93922.0,93921.0,0.1785381]
[1745864068294,0.03846675,93922.0,93921.0,0.4081532]
[1745864068502,0.03846675,93922.0,93921.0,0.81553759]
[1745864068712,0.02741894,93922.0,93921.0,0.81553759]
[1745864069542,0.02841894,93922.0,93921.0,0.81853759]
[1745864069747,0.02096285,93922.0,93921.0,0.81853759]
[1745864069982,0.01996285,93922.0,93921.0,0.81553759]
[1745864071880,0.01996285,93922.0,93921.0,0.81853759]
[1745864079149,0.01996285,93922.0,93921.0,0.60559267]
[1745864079586,0.01996285,93922.0,93921.0,0.68521182]
[1745864079800,0.01996285,93922.0,93921.0,0.69975267]
[1745864080236,0.02744229,93922.0,93921.0,0.69975267]
[1745864081083,0.01996285,93922.0,93921.0,0.69975267]
[1745864086413,0.01996285,93922.0,93921.0,0.70079267]
[1745864086618,0.01996285,93922.0,93921.0,0.60559267]
[1745864086820,0.01996285,93922.0,93921.0,0.70079267]
[1745864087940,0.01996285,93922.0,93921.0,0.65249267]
[1745864088154,0.01996285,93922.0,93921.0,0.54275182]
[1745864088361,0.01996285,93922.0,93921.0,0.49755182]
[1745864088567,0.02744353,93922.0,93921.0,0.59275182]
[1745864089176,0.03582632,93922.0,93921.0,0.59275182]
[1745864091670,0.03582632,93922.0,93921.0,0.18165182]
[1745864096137,0.27869306,93922.0,93921.0,0.08645182]
[1745864096351,0.06575041,93922.0,93921.0,0.08645182]
[1745864096900,0.06575041,93922.0,93921.0,0.08345182]
[1745864097305,0.06575041,93922.0,93921.0,0.08545182]
[1745864098317,0.06575041,93922.0,93921.0,0.0054299]
[1745864098549,0.27869306,93922.0,93921.0,0.0054299]
[1745864098718,0.06575041,93922.0,93921.0,0.0054299]
[1745864107393,0.03582632,93922.0,93921.0,0.32526496]
[1745864107676,0.02744353,93922.0,93921.0,0.33980581]
[1745864107854,0.02744353,93922.0,93921.0,0.12686089]
[1745864108049,0.02744353,93922.0,93921.0,0.33980581]
[1745864108223,0.02744353,93922.0,93921.0,0.12686089]
[1745864108416,0.01996285,93922.0,93921.0,0.22206089]
[1745864109015,0.01996285,93922.0,93921.0,0.43500581]
[1745864109212,0.01996285,93922.0,93921.0,0.22206089]
[1745864109848,0.01996285,93922.0,93921.0,0.43500581]
[1745864112227,0.02744353,93922.0,93921.0,0.43500581]
[1745864116845,0.02744353,93922.0,93921.0,0.48110581]
[1745864117234,0.02744353,93922.0,93921.0,0.53010581]
[1745864117901,0.01996285,93922.0,93921.0,0.53010581]
[1745864118314,0.01996285,93938.0,93921.0,0.53010581]
[1745864118479,0.01996285,93938.0,93932.0,0.01454085]
[1745864118693,0.02970332,93937.0,93936.0,0.21291091]
[1745864119021,0.02744353,93937.0,93936.0,0.32002695]
[1745864119814,0.02744353,93937.0,93936.0,0.3345678]
[1745864120454,0.02944353,93937.0,93936.0,0.3839678]
[1745864120960,0.02944353,93937.0,93936.0,0.8418678]
[1745864121305,0.002,93937.0,93936.0,0.8418678]
[1745864121881,0.01996285,93945.0,93944.0,0.22743363]
[1745864122076,0.01996285,93945.0,93944.0,0.42870967]
[1745864122458,0.02744353,93952.0,93950.0,0.21287869]
[1745864122633,0.02744353,93952.0,93951.0,0.15629014]
[1745864123191,0.01996285,93952.0,93951.0,0.15651604]
[1745864123806,0.0200083,93952.0,93951.0,0.15651604]
[1745864124597,4.545e-05,93952.0,93951.0,0.15651604]
[1745864125338,4.545e-05,93952.0,93951.0,0.15751604]
[1745864126918,4.545e-05,93952.0,93951.0,0.10811604]
[1745864127119,0.00980491,93952.0,93951.0,0.10811604]
[1745864127436,0.02976776,93952.0,93951.0,0.10811604]
[1745864128092,0.02976776,93952.0,93951.0,0.10711604]
[1745864135753,0.03724844,93952.0,93951.0,0.10711604]
[1745864140529,0.37724844,93952.0,93951.0,0.10711604]
[1745864141334,0.35728559,93952.0,93951.0,0.10711604]
[1745864141749,0.01728559,93952.0,93951.0,0.10711604]
[1745864142380,0.35728559,93952.0,93951.0,0.10711604]
[1745864142583,0.38716127,93952.0,93951.0,0.0002259]
[1745864142802,0.60003592,93952.0,93951.0,0.0002259]
[1745864143056,0.81995908,93952.0,93951.0,0.0002259]
[1745864143465,0.71397457,93952.0,93951.0,0.0002259]